{"text_format":"1","workbook":"xlsx","n_sheets":20,"sheets":["Página Inicial","Introdução","Dashboard","Publicização","pivot_Publicização","db_Publicização","chart_Publicização","Seleção","db_Seleção","pivot_Seleção","chart_seleção","Execução","db_Execução","pivot_Execução","chart_Execução","Encerramento","db_Encerramento","pivot_Encerramento","chart_Encerramento","listas"],"not_rendered":{"charts":9,"images":11,"macros":1,"external_links":0,"defined_names":7,"comments":0,"pivot_tables":5},"unopened":[],"bounds":{"document_bytes":16777216,"sheet_cells":100000,"rows_first":2000,"rows_last":500,"rows_between":2000,"halvings":0,"cell_chars":16384,"cell_head_chars":4096},"cells_cut":0,"cells_raw":0,"read":"whole","date_system":"1900"}

{"sheet":"Página Inicial","index":0,"n_rows":0,"n_cols":0,"rows_kept":0,"cut":false,"hidden":false,"merged":[]}

{"sheet":"Introdução","index":1,"n_rows":66,"n_cols":10,"rows_kept":66,"cut":false,"hidden":false,"merged":[[40,1,40,13],[56,3,56,8],[7,1,7,13],[13,1,13,13],[19,1,19,13],[16,1,16,13],[8,1,8,10],[9,3,9,8]]}
[]
[]
[]
[]
[]
[]
[]
[null,"INFORMAÇÕES GERAIS"]
[]
[null,"Unidade Publicizada"]
[]
[null,"Secretaria Contratante:"]
[]
[null,"1. DADOS DA PUBLICIZAÇÃO"]
[]
[null,"1.1 Serviço Publicizado:"]
[]
[]
[null,"1.2 Número do Processo de Publicização:"]
[]
[null,"1.3 Ofício Manifestação de Interesse:"]
[]
[null,"Nº do Ofício",null,"Data"]
[]
[]
[null,"1.4 Comissão de Publicização:"]
[]
[null,"1.4.1 Portaria de designação da Comissão de Publicização:"]
[]
[null,"Nº da Portaria",null,"Data",null,"Prazo Final para conclusão dos trabalhos"]
[]
[]
[null,"1.4.2 Membros da Comissão:"]
[]
[null,"Nome",null,"Órgão",null,"Setor",null,"Telefone",null,"Email"]
[]
[]
[]
[]
[]
[null,"2. DADOS DA SELEÇÃO"]
[]
[null,"2.1 Processo de Seleção"]
[]
[null,"Nº do Processo Administrativo",null,"Nº de Edital de Seleção",null,"Data da Publicação do Edital"]
[]
[]
[]
[]
[]
[null,"Organizações Sociais Participantes do Pleito"]
[]
[]
[]
[]
[]
[null,"2.2 Organização social vencedora do pleito:"]
[]
[null,"Código do Contrato",null,"OS Contratada"]
[null,"Incluir códigos automáticos"]
[null,"Incluir códigos automáticos"]
[null,"Incluir códigos automáticos"]
[]
["+"]
[]
[null,"Descritivo dos contratos de gestão em questão:"]

{"sheet":"Dashboard","index":2,"n_rows":46,"n_cols":16,"rows_kept":46,"cut":false,"hidden":false,"merged":[[7,9,7,23],[40,5,40,6],[40,7,40,9],[40,3,41,3],[24,2,24,6],[40,4,41,4],[15,4,15,6],[7,4,7,5]]}
[]
[]
[]
[]
[]
[]
[]
[null,null,null,null,"Geral",null,null,null,null,{"$f":"Introdução!B17","v":0}]
[null,null,null,null,"Indicadores na Meta","Indicadores Fora da Meta"]
[null,null,1,"Publicização",{"$f":"IFERROR(SUMIF(OFFSET(Publicização!$S$10,0,0,COUNT(Publicização!R:R)*2,1),\">0\")/SUM(OFFSET(Publicização!$N$10,0,0,COUNT(Publicização!R:R)*2,1)),0)","v":0},{"$f":"IFERROR(-SUMIF(OFFSET(Publicização!$S$10,0,0,COUNT(Publicização!R:R)*2,1),\"<0\")/SUM(OFFSET(Publicização!$N$10,0,0,COUNT(Publicização!R:R)*2,1)),0)","v":0},null,null,null,null,null,null,null,null,null,{"$f":"IF(K10=\"\",\"\",IF(O10>0,K10,-K10))","v":""}]
[null,null,2,"Seleção",{"$f":"IFERROR(SUMIF(OFFSET(Seleção!$S$10,0,0,COUNT(Seleção!R:R)*2,1),\">0\")/SUM(OFFSET(Seleção!$N$10,0,0,COUNT(Seleção!R:R)*2,1)),0)","v":0},{"$f":"IFERROR(-SUMIF(OFFSET(Seleção!$S$10,0,0,COUNT(Seleção!R:R)*2,1),\"<0\")/SUM(OFFSET(Seleção!$N$10,0,0,COUNT(Seleção!R:R)*2,1)),0)","v":0},null,null,null,null,null,null,null,null,null,{"$f":"IF(K11=\"\",\"\",IF(O11>0,K11,-K11))","v":""}]
[null,null,3,"Execução",{"$f":"IFERROR(SUMIF(OFFSET(Execução!$S$10,0,0,COUNT(Execução!R:R)*2,1),\">0\")/SUM(OFFSET(Execução!$N$10,0,0,COUNT(Execução!R:R)*2,1)),0)","v":0},{"$f":"IFERROR(-SUMIF(OFFSET(Execução!$S$10,0,0,COUNT(Execução!R:R)*2,1),\"<0\")/SUM(OFFSET(Execução!$N$10,0,0,COUNT(Execução!R:R)*2,1)),0)","v":0},null,null,null,null,1,null,null,null,null,{"$f":"IF(K12=\"\",\"\",IF(O12>0,K12,-K12))","v":-1}]
[null,null,4,"Encerramento",{"$f":"IFERROR(SUMIF(OFFSET(Encerramento!$S$10,0,0,COUNT(Encerramento!R:R)*2,1),\">0\")/SUM(OFFSET(Encerramento!$N$10,0,0,COUNT(Encerramento!R:R)*2,1)),0)","v":0},{"$f":"IFERROR(-SUMIF(OFFSET(Encerramento!$S$10,0,0,COUNT(Encerramento!R:R)*2,1),\"<0\")/SUM(OFFSET(Encerramento!$N$10,0,0,COUNT(Encerramento!R:R)*2,1)),0)","v":0},null,null,null,null,null,null,null,null,null,{"$f":"IF(K13=\"\",\"\",IF(O13>0,K13,-K13))","v":""}]
[]
[]
[null,null,null,null,"Índice Geral Ponderado"]
[null,null,null,null,"Peso no processo","Indicadores na Meta","Indicadores Fora da Meta"]
[null,null,1,"Publicização",0.15,{"$f":"IFERROR(SUMIF(OFFSET(Publicização!$S$10,0,0,COUNT(Publicização!S:S)*2,1),\">0\")/SUM(OFFSET(Publicização!$N$10,0,0,COUNT(Publicização!S:S)*2,1)),0)*E18","v":0.15},{"$f":"IFERROR(-SUMIF(OFFSET(Publicização!$S$10,0,0,COUNT(Publicização!S:S)*2,1),\"<0\")/SUM(OFFSET(Publicização!$N$10,0,0,COUNT(Publicização!S:S)*2,1)),0)*E18","v":0}]
[null,null,2,"Seleção",0.15,{"$f":"IFERROR(SUMIF(OFFSET(Seleção!$S$10,0,0,COUNT(Seleção!S:S)*2,1),\">0\")/SUM(OFFSET(Seleção!$N$10,0,0,COUNT(Seleção!S:S)*2,1)),0)*E19","v":0.125},{"$f":"IFERROR(-SUMIF(OFFSET(Seleção!$S$10,0,0,COUNT(Seleção!S:S)*2,1),\"<0\")/SUM(OFFSET(Seleção!$N$10,0,0,COUNT(Seleção!S:S)*2,1)),0)*E19","v":0}]
[null,null,3,"Execução",0.5,{"$f":"IFERROR(SUMIF(OFFSET(Execução!$S$10,0,0,COUNT(Execução!S:S)*2,1),\">0\")/SUM(OFFSET(Execução!$N$10,0,0,COUNT(Execução!S:S)*2,1)),0)*E20","v":0.5},{"$f":"IFERROR(-SUMIF(OFFSET(Execução!$S$10,0,0,COUNT(Execução!S:S)*2,1),\"<0\")/SUM(OFFSET(Execução!$N$10,0,0,COUNT(Execução!S:S)*2,1)),0)*E20","v":0}]
[null,null,4,"Encerramento",0.2,{"$f":"IFERROR(SUMIF(OFFSET(Encerramento!$S$10,0,0,COUNT(Encerramento!S:S)*2,1),\">0\")/SUM(OFFSET(Encerramento!$N$10,0,0,COUNT(Encerramento!S:S)*2,1)),0)*E21","v":0.2},{"$f":"IFERROR(-SUMIF(OFFSET(Encerramento!$S$10,0,0,COUNT(Encerramento!S:S)*2,1),\"<0\")/SUM(OFFSET(Encerramento!$N$10,0,0,COUNT(Encerramento!S:S)*2,1)),0)*E21","v":0}]
[null,null,"TOTAL",null,{"$f":"SUM(E18:E21)","v":1},{"$f":"SUM(F18:F21)","v":0.97500000000000009},{"$f":"SUM(G18:G21)","v":0}]
[]
[]
[null,null,{"$f":"\"Data de acompanhamento: \"&DAY(TODAY())&\"/\"&MONTH(TODAY()) &\"/\"& YEAR(TODAY())","v":"Data de acompanhamento: 3/1/2017"}]
[]
[]
[]
[]
[]
[]
[]
[]
[]
[]
[]
[]
[]
[]
[]
[null,null,null,"Data","Fase do ciclo de Publicização","Índice Geral",null,"Índice Geral Ponderado"]
[null,null,null,null,null,"Indicadores na Meta","Indicadores Fora da Meta","Peso no processo","Indicadores na Meta","Indicadores Fora da Meta"]
[null,null,null,"2015-12-22T14:10:37","Publicização",0.25,0.75,0.2,0.05,0.15000000000000002]
[null,null,null,"2015-12-22T14:10:37","Seleção",0.5625,0.4375,0.25,0.140625,0.109375]
[null,null,null,"2015-12-22T14:10:37","Execução",0.44186046511627908,0.55813953488372092,0.35,0.15465116279069765,0.19534883720930232]
[null,null,null,"2015-12-22T14:10:37","Encerramento",0,0,0.2,0,0]

{"sheet":"Publicização","index":3,"n_rows":18,"n_cols":257,"rows_kept":18,"cut":false,"hidden":false,"merged":[[15,16,16,16],[15,17,16,17],[15,11,16,11],[15,12,16,12],[15,13,16,13],[15,14,16,14],[15,15,16,15],[13,11,14,11],[13,12,14,12],[13,13,14,13],[13,8,14,8],[13,9,14,9],[15,10,16,10],[15,7,16,7],[15,6,16,6],[13,5,14,5],[15,8,16,8],[15,9,16,9],[13,10,14,10],[13,7,14,7],[13,6,14,6],[15,3,16,3],[15,5,16,5],[15,1,16,1],[15,2,16,2],[15,4,16,4],[13,1,14,1],[13,2,14,2],[13,4,14,4],[13,3,14,3],[11,5,12,5],[11,3,12,3],[11,1,12,1],[11,2,12,2],[11,4,12,4],[13,16,14,16],[13,17,14,17],[11,14,12,14],[11,15,12,15],[11,16,12,16],[11,17,12,17],[13,14,14,14],[13,15,14,15],[11,11,12,11],[11,12,12,12],[11,13,12,13],[9,3,10,3],[9,5,10,5],[9,10,10,10],[9,7,10,7],[9,6,10,6],[11,10,12,10],[11,7,12,7],[11,6,12,6],[11,9,12,9],[11,8,12,8],[9,17,10,17],[9,13,10,13],[9,16,10,16],[9,12,10,12],[9,1,10,1],[9,2,10,2],[9,8,10,8],[9,9,10,9],[9,11,10,11],[9,4,10,4],[9,15,10,15],[9,14,10,14],[21,5,22,5],[21,10,22,10],[21,7,22,7],[17,5,18,5],[17,10,18,10],[17,7,18,7],[19,5,20,5],[19,10,20,10],[19,7,20,7]]}
[]
[]
[]
[]
[]
[]
[]
[null,null,null,null,null,null,null,null,null,null,null,null,null,null,null,null,null,null,null,null,"Acompanhamento do indicador"]
["XXX","Código\ndo contrato","Código do Indicador","Nome do Indicador","Objetivo do Indicador","Norteador Relacionado","Riscos","Mecanismo de Controle","Responsável","Fórmula de Cálculo","Meio de Verificação","Unidade","Periodicidade","Peso do Indicador","Meta Geral","Realizado Geral","Este indicador deve manter-se:","Desvio",null,"Acompanhamento",1,2,3,4,5,6,7,8,9,10,11,12,13,14,15,16,17,18,19,20,21,22,23,24,25,26,27,28,29,30,31,32,33,34,35,36,37,38,39,40,41,42,43,44,45,46,47,48,49,50,51,52,53,54,55,56,57,58,59,60,61,62,63,64,65,66,67,68,69,70,71,72,73,74,75,76,77,78,79,80,81,82,83,84,85,86,87,88,89,90,91,92,93,94,95,96,97,98,99,100,101,102,103,104,105,106,107,108,109,110,111,112,113,114,115,116,117,118,119,120,121,122,123,124,125,126,127,128,129,130,131,132,133,134,135,136,137,138,139,140,141,142,143,144,145,146,147,148,149,150,151,152,153,154,155,156,157,158,159,160,161,162,163,164,165,166,167,168,169,170,171,172,173,174,175,176,177,178,179,180,181,182,183,184,185,186,187,188,189,190,191,192,193,194,195,196,197,198,199,200,201,202,203,204,205,206,207,208,209,210,211,212,213,214,215,216,217,218,219,220,221,222,223,224,225,226,227,228,229,230,231,232,233,234,235,236]
[null,123,"1.1","Cumprimento do prazo do processo de Publicização ","Mensurar o período de tempo decorrente entre o Ofício de Manifestação de Interesse e a última publicação da Portaria de Publicização.","Excelência de Processos ","Não efetivação da publicização. Inviabilização da prestação do serviço. ","Obter mensalmente o relatório com a quantidade de emissões de Ofícios de Manifestação de Interesse e confrontar com a criação de Planos de Ação.","UGC","Número de dias do início ao fim do processo","Diário Oficial do Estado (DOE)","Dias","Após publicação da última Portaria de Publicização",5,{"$f":"IFERROR(AVERAGE(U10:IV10),\"\")","v":""},{"$f":"IFERROR(AVERAGE(U11:IV11),\"\")","v":""},"Abaixo da meta",{"$f":"IFERROR(IF(Q10=\"Acima da meta\",P10-O10,(P10-O10)*(-1)/O10)*N10,\"\")","v":""},{"$f":"IF(N10=\"\",\"\",IF(R10>0,N10,-N10))","v":5},"Meta",null,null,null,null,null,null,null,null,null,null,null,null,null,null,null,null,null,null,null,null,null,null,null,null,null,null,null,null,null,null,null,null,null,null,null,null,null,null,null,null,null,null,null,null,null,null,null,null,null,null,null,null,null,null,null,null,null,null,null,null,null,null,null,null,null,null,null,null,null,null,null,null,null,null,null,null,null,null,null,null,null,null,null,null,null,null,null,null,null,null,null,null,null,null,null,null,null,null,null,null,null,null,null,null,null,null,null,null,null,null,null,null,null,null,null,null,null,null,null,null,null,null,null,null,null,null,null,null,null,null,null,null,null,null,null,null,null,null,null,null,null,null,null,null,null,null,null,null,null,null,null,null,null,null,null,null,null,null,null,null,null,null,null,null,null,null,null,null,null,null,null,null,null,null,null,null,null,null,null,null,null,null,null,null,null,null,null,null,null,null,null,null,null,null,null,null,null,null,null,null,null,null,null,null,null,null,null,null,null,null,null,null,null,null,null,null,null,null,null,null,null,null,null,null,null,null,null,null,null,null,null,null,null,null,null,null,"x"]
["Ó",null,null,null,null,null,null,null,null,null,null,null,null,null,null,null,null,null,{"$f":"IF(N11=\"\",\"\",IF(R11>0,N11,-N11))","v":""},"Realizado",null,null,null,null,null,null,null,null,null,null,null,null,null,null,null,null,null,null,null,null,null,null,null,null,null,null,null,null,null,null,null,null,null,null,null,null,null,null,null,null,null,null,null,null,null,null,null,null,null,null,null,null,null,null,null,null,null,null,null,null,null,null,null,null,null,null,null,null,null,null,null,null,null,null,null,null,null,null,null,null,null,null,null,null,null,null,null,null,null,null,null,null,null,null,null,null,null,null,null,null,null,null,null,null,null,null,null,null,null,null,null,null,null,null,null,null,null,null,null,null,null,null,null,null,null,null,null,null,null,null,null,null,null,null,null,null,null,null,null,null,null,null,null,null,null,null,null,null,null,null,null,null,null,null,null,null,null,null,null,null,null,null,null,null,null,null,null,null,null,null,null,null,null,null,null,null,null,null,null,null,null,null,null,null,null,null,null,null,null,null,null,null,null,null,null,null,null,null,null,null,null,null,null,null,null,null,null,null,null,null,null,null,null,null,null,null,null,null,null,null,null,null,null,null,null,null,null,null,null,null,null,null,null,null,null,null,"x"]
[null,null,"1.2","Controle de planejamento da Publicização","Controlar a criação de Plano de Ação para cada Ofício de Manifestação de Interesse emitido pelo Secretario no prazo estabelecido.","Excelência de Processos ","Não efetivação da publicização. Inviabilização da prestação do serviço. ","Acompanhar tempestivamente o cronograma, identificando não conformidades e criação de plano de ação para corrigi-las.","UGC","Plano de Ação elaborado","Plano de Ação","Unidade","5 dias após Portaria de Designação da Comissão ",5,{"$f":"IFERROR(AVERAGE(U12:IV12),\"\")","v":""},{"$f":"IFERROR(AVERAGE(U13:IV13),\"\")","v":""},"Abaixo da meta",{"$f":"IFERROR(IF(Q12=\"Acima da meta\",P12-O12,(P12-O12)*(-1)/O12)*N12,\"\")","v":""},5,"Meta",null,null,null,null,null,null,null,null,null,null,null,null,null,null,null,null,null,null,null,null,null,null,null,null,null,null,null,null,null,null,null,null,null,null,null,null,null,null,null,null,null,null,null,null,null,null,null,null,null,null,null,null,null,null,null,null,null,null,null,null,null,null,null,null,null,null,null,null,null,null,null,null,null,null,null,null,null,null,null,null,null,null,null,null,null,null,null,null,null,null,null,null,null,null,null,null,null,null,null,null,null,null,null,null,null,null,null,null,null,null,null,null,null,null,null,null,null,null,null,null,null,null,null,null,null,null,null,null,null,null,null,null,null,null,null,null,null,null,null,null,null,null,null,null,null,null,null,null,null,null,null,null,null,null,null,null,null,null,null,null,null,null,null,null,null,null,null,null,null,null,null,null,null,null,null,null,null,null,null,null,null,null,null,null,null,null,null,null,null,null,null,null,null,null,null,null,null,null,null,null,null,null,null,null,null,null,null,null,null,null,null,null,null,null,null,null,null,null,null,null,null,null,null,null,null,null,null,null,null,null,null,null,null,null,null,null,"x"]
["Ó",null,null,null,null,null,null,null,null,null,null,null,null,null,null,null,null,null,"","Realizado",null,null,null,null,null,null,null,null,null,null,null,null,null,null,null,null,null,null,null,null,null,null,null,null,null,null,null,null,null,null,null,null,null,null,null,null,null,null,null,null,null,null,null,null,null,null,null,null,null,null,null,null,null,null,null,null,null,null,null,null,null,null,null,null,null,null,null,null,null,null,null,null,null,null,null,null,null,null,null,null,null,null,null,null,null,null,null,null,null,null,null,null,null,null,null,null,null,null,null,null,null,null,null,null,null,null,null,null,null,null,null,null,null,null,null,null,null,null,null,null,null,null,null,null,null,null,null,null,null,null,null,null,null,null,null,null,null,null,null,null,null,null,null,null,null,null,null,null,null,null,null,null,null,null,null,null,null,null,null,null,null,null,null,null,null,null,null,null,null,null,null,null,null,null,null,null,null,null,null,null,null,null,null,null,null,null,null,null,null,null,null,null,null,null,null,null,null,null,null,null,null,null,null,null,null,null,null,null,null,null,null,null,null,null,null,null,null,null,null,null,null,null,null,null,null,null,null,null,null,null,null,null,null,null,null,null,"x"]
[null,null,"1.3","Qualidade do Projeto de Publicização","Avaliar o índice de qualidade do Projeto, considerando o atendimento satisfatório de todos os requisitos (objetivo, orçamento, metas, indicadores e componentes de infraestrutura, finalístico e de gestão).","Excelência de Processos / Geração de Valores","Finalização dos projetos com qualidade aquém das necessidades da Secretaria não respeitando os requisitos necessários.","Verificar o cumprimento dos procedimentos de execução do Projeto de Publicização.","UGC","A soma das notas de todos os índices / Total de requisitos vezes 5 (cinco)","Projeto de Publicização","Unidade","Durante a Avaliação Ex-Ante",5,{"$f":"IFERROR(AVERAGE(U14:IV14),\"\")","v":""},{"$f":"IFERROR(AVERAGE(U15:IV15),\"\")","v":""},"Acima da meta",{"$f":"IFERROR(IF(Q14=\"Acima da meta\",P14-O14,(P14-O14)*(-1)/O14)*N14,\"\")","v":""},5,"Meta",null,null,null,null,null,null,null,null,null,null,null,null,null,null,null,null,null,null,null,null,null,null,null,null,null,null,null,null,null,null,null,null,null,null,null,null,null,null,null,null,null,null,null,null,null,null,null,null,null,null,null,null,null,null,null,null,null,null,null,null,null,null,null,null,null,null,null,null,null,null,null,null,null,null,null,null,null,null,null,null,null,null,null,null,null,null,null,null,null,null,null,null,null,null,null,null,null,null,null,null,null,null,null,null,null,null,null,null,null,null,null,null,null,null,null,null,null,null,null,null,null,null,null,null,null,null,null,null,null,null,null,null,null,null,null,null,null,null,null,null,null,null,null,null,null,null,null,null,null,null,null,null,null,null,null,null,null,null,null,null,null,null,null,null,null,null,null,null,null,null,null,null,null,null,null,null,null,null,null,null,null,null,null,null,null,null,null,null,null,null,null,null,null,null,null,null,null,null,null,null,null,null,null,null,null,null,null,null,null,null,null,null,null,null,null,null,null,null,null,null,null,null,null,null,null,null,null,null,null,null,null,null,null,null,null,null,"x"]
["Ó",null,null,null,null,null,null,null,null,null,null,null,null,null,null,null,null,null,"","Realizado",null,null,null,null,null,null,null,null,null,null,null,null,null,null,null,null,null,null,null,null,null,null,null,null,null,null,null,null,null,null,null,null,null,null,null,null,null,null,null,null,null,null,null,null,null,null,null,null,null,null,null,null,null,null,null,null,null,null,null,null,null,null,null,null,null,null,null,null,null,null,null,null,null,null,null,null,null,null,null,null,null,null,null,null,null,null,null,null,null,null,null,null,null,null,null,null,null,null,null,null,null,null,null,null,null,null,null,null,null,null,null,null,null,null,null,null,null,null,null,null,null,null,null,null,null,null,null,null,null,null,null,null,null,null,null,null,null,null,null,null,null,null,null,null,null,null,null,null,null,null,null,null,null,null,null,null,null,null,null,null,null,null,null,null,null,null,null,null,null,null,null,null,null,null,null,null,null,null,null,null,null,null,null,null,null,null,null,null,null,null,null,null,null,null,null,null,null,null,null,null,null,null,null,null,null,null,null,null,null,null,null,null,null,null,null,null,null,null,null,null,null,null,null,null,null,null,null,null,null,null,null,null,null,null,null,null,"x"]
[null,null,"1.4","Cumprimento do rito legal da Publicização","Avaliar se a Publicização ocorreu após a emissão dos atos necessários (Parecer de Conveniência e Oportunidade do Secretário, Resolução do CONGEOS, Autorização do Governador e Portaria de Publicização).","Transparência de Gestão","Processo de Publicização em desconformidade legal.","Verificar o cumprimento dos procedimentos de execução do Projeto de Publicização.","UGC","Número de atos conformes / Número de atos previstos * 100","Publicação DOE e jornal de grande circulação.","%","Após publicação da última Portaria de Publicização",5,{"$f":"IFERROR(AVERAGE(U16:IV16),\"\")","v":""},{"$f":"IFERROR(AVERAGE(U17:IV17),\"\")","v":""},"Abaixo da meta",{"$f":"IFERROR(IF(Q16=\"Acima da meta\",P16-O16,(P16-O16)*(-1)/O16)*N16,\"\")","v":""},5,"Meta",null,null,null,null,null,null,null,null,null,null,null,null,null,null,null,null,null,null,null,null,null,null,null,null,null,null,null,null,null,null,null,null,null,null,null,null,null,null,null,null,null,null,null,null,null,null,null,null,null,null,null,null,null,null,null,null,null,null,null,null,null,null,null,null,null,null,null,null,null,null,null,null,null,null,null,null,null,null,null,null,null,null,null,null,null,null,null,null,null,null,null,null,null,null,null,null,null,null,null,null,null,null,null,null,null,null,null,null,null,null,null,null,null,null,null,null,null,null,null,null,null,null,null,null,null,null,null,null,null,null,null,null,null,null,null,null,null,null,null,null,null,null,null,null,null,null,null,null,null,null,null,null,null,null,null,null,null,null,null,null,null,null,null,null,null,null,null,null,null,null,null,null,null,null,null,null,null,null,null,null,null,null,null,null,null,null,null,null,null,null,null,null,null,null,null,null,null,null,null,null,null,null,null,null,null,null,null,null,null,null,null,null,null,null,null,null,null,null,null,null,null,null,null,null,null,null,null,null,null,null,null,null,null,null,null,null,"x"]
["Ó",null,null,null,null,null,null,null,null,null,null,null,null,null,null,null,null,null,"","Realizado",null,null,null,null,null,null,null,null,null,null,null,null,null,null,null,null,null,null,null,null,null,null,null,null,null,null,null,null,null,null,null,null,null,null,null,null,null,null,null,null,null,null,null,null,null,null,null,null,null,null,null,null,null,null,null,null,null,null,null,null,null,null,null,null,null,null,null,null,null,null,null,null,null,null,null,null,null,null,null,null,null,null,null,null,null,null,null,null,null,null,null,null,null,null,null,null,null,null,null,null,null,null,null,null,null,null,null,null,null,null,null,null,null,null,null,null,null,null,null,null,null,null,null,null,null,null,null,null,null,null,null,null,null,null,null,null,null,null,null,null,null,null,null,null,null,null,null,null,null,null,null,null,null,null,null,null,null,null,null,null,null,null,null,null,null,null,null,null,null,null,null,null,null,null,null,null,null,null,null,null,null,null,null,null,null,null,null,null,null,null,null,null,null,null,null,null,null,null,null,null,null,null,null,null,null,null,null,null,null,null,null,null,null,null,null,null,null,null,null,null,null,null,null,null,null,null,null,null,null,null,null,null,null,null,null,null,"x"]
["Ì"]

{"sheet":"pivot_Publicização","index":4,"n_rows":7,"n_cols":3,"rows_kept":7,"cut":false,"hidden":true,"merged":[]}
["Nome do indicador",1.1000000000000001]
[]
["Row Labels","Sum of Meta","Sum of Realizado"]
[1,90,95]
["Acompanhamento",0,0]
["(blank)",-5]
["Grand Total",85,95]

{"sheet":"db_Publicização","index":5,"n_rows":13,"n_cols":7,"rows_kept":13,"cut":false,"hidden":true,"merged":[]}
["Nome do indicador","Categorização","Unidade","Peso do indicador","Acompanhamento","Meta","Realizado"]
[1.1000000000000001,"Mensurar o período de tempo decorrente entre o Ofício de Manifestação de Interesse e a última publicação da Portaria de Publicização.","Obter mensalmente o relatório com a quantidade de emissões de Ofícios de Manifestação de Interesse e confrontar com a criação de Planos de Ação.","Dias",null,-5]
[1.1000000000000001,"Mensurar o período de tempo decorrente entre o Ofício de Manifestação de Interesse e a última publicação da Portaria de Publicização.","Obter mensalmente o relatório com a quantidade de emissões de Ofícios de Manifestação de Interesse e confrontar com a criação de Planos de Ação.","Dias","Acompanhamento","Meta","Realizado"]
[1.1000000000000001,"Mensurar o período de tempo decorrente entre o Ofício de Manifestação de Interesse e a última publicação da Portaria de Publicização.","Obter mensalmente o relatório com a quantidade de emissões de Ofícios de Manifestação de Interesse e confrontar com a criação de Planos de Ação.","Dias",1,90,95]
[1.2,"Controlar a criação de Plano de Ação para cada Ofício de Manifestação de Interesse emitido pelo Secretario no prazo estabelecido.","Acompanhar tempestivamente o cronograma, identificando não conformidades e criação de plano de ação para corrigi-las.","Unidade",null,5]
[1.2,"Controlar a criação de Plano de Ação para cada Ofício de Manifestação de Interesse emitido pelo Secretario no prazo estabelecido.","Acompanhar tempestivamente o cronograma, identificando não conformidades e criação de plano de ação para corrigi-las.","Unidade","Acompanhamento","Meta","Realizado"]
[1.2,"Controlar a criação de Plano de Ação para cada Ofício de Manifestação de Interesse emitido pelo Secretario no prazo estabelecido.","Acompanhar tempestivamente o cronograma, identificando não conformidades e criação de plano de ação para corrigi-las.","Unidade",1,1,0.5]
[1.3,"Avaliar o índice de qualidade do Projeto, considerando o atendimento satisfatório de todos os requisitos (objetivo, orçamento, metas, indicadores e componentes de infraestrutura, finalístico e de gestão).","Verificar o cumprimento dos procedimentos de execução do Projeto de Publicização.","Unidade",null,5]
[1.3,"Avaliar o índice de qualidade do Projeto, considerando o atendimento satisfatório de todos os requisitos (objetivo, orçamento, metas, indicadores e componentes de infraestrutura, finalístico e de gestão).","Verificar o cumprimento dos procedimentos de execução do Projeto de Publicização.","Unidade","Acompanhamento","Meta","Realizado"]
[1.3,"Avaliar o índice de qualidade do Projeto, considerando o atendimento satisfatório de todos os requisitos (objetivo, orçamento, metas, indicadores e componentes de infraestrutura, finalístico e de gestão).","Verificar o cumprimento dos procedimentos de execução do Projeto de Publicização.","Unidade",1,1,5]
[1.4,"Avaliar se a Publicização ocorreu após a emissão dos atos necessários (Resolução do CONGEOS, Autorização do Governador e Portaria de Publicização).","Verificar o cumprimento dos procedimentos de execução do Projeto de Publicização.","%",null,-5]
[1.4,"Avaliar se a Publicização ocorreu após a emissão dos atos necessários (Resolução do CONGEOS, Autorização do Governador e Portaria de Publicização).","Verificar o cumprimento dos procedimentos de execução do Projeto de Publicização.","%","Acompanhamento","Meta","Realizado"]
[1.4,"Avaliar se a Publicização ocorreu após a emissão dos atos necessários (Resolução do CONGEOS, Autorização do Governador e Portaria de Publicização).","Verificar o cumprimento dos procedimentos de execução do Projeto de Publicização.","%",1,1,1.2]

{"sheet":"chart_Publicização","index":6,"n_rows":0,"n_cols":0,"rows_kept":0,"cut":false,"hidden":false,"merged":[]}

{"sheet":"Seleção","index":7,"n_rows":16,"n_cols":256,"rows_kept":16,"cut":false,"hidden":false,"merged":[[13,11,14,11],[15,15,16,15],[13,12,14,12],[13,13,14,13],[13,5,14,5],[13,6,14,6],[15,14,16,14],[16,5,17,5],[16,10,17,10],[16,7,17,7],[13,10,14,10],[13,1,14,1],[13,2,14,2],[13,4,14,4],[13,8,14,8],[13,9,14,9],[13,3,14,3],[13,7,14,7],[11,16,12,16],[9,17,10,17],[9,13,10,13],[9,14,10,14],[9,15,10,15],[9,16,10,16],[13,16,14,16],[13,17,14,17],[13,14,14,14],[13,15,14,15],[9,3,10,3],[9,4,10,4],[9,5,10,5],[11,6,12,6],[9,10,10,10],[9,7,10,7],[11,10,12,10],[11,7,12,7],[11,17,12,17],[11,13,12,13],[11,14,12,14],[11,15,12,15],[11,1,12,1],[9,8,10,8],[9,9,10,9],[9,11,10,11],[9,12,10,12],[11,2,12,2],[11,3,12,3],[11,4,12,4],[11,5,12,5],[11,8,12,8],[9,6,10,6],[11,9,12,9],[11,11,12,11],[11,12,12,12],[9,1,10,1],[9,2,10,2]]}
[]
[]
[]
[]
[]
[]
[]
[null,null,null,null,null,null,null,null,null,null,null,null,null,null,null,null,null,null,null,null,"Acompanhamento do indicador"]
["XXX","Código\ndo Contrato","Código do Indicador","Nome do Indicador","Objetivo do Indicador","Norteador Relacionado","Riscos","Mecanismo de Controle","Responsável","Fórmula de Cálculo","Meio de Verificação","Unidade","Periodicidade","Peso do Indicador","Meta Geral","Realizado Geral","Este indicador deve manter-se:","Desvio",null,null,1,2,3,4,5,6,7,8,9,10,11,12,13,14,15,16,17,18,19,20,21,22,23,24,25,26,27,28,29,30,31,32,33,34,35,36,37,38,39,40,41,42,43,44,45,46,47,48,49,50,51,52,53,54,55,56,57,58,59,60,61,62,63,64,65,66,67,68,69,70,71,72,73,74,75,76,77,78,79,80,81,82,83,84,85,86,87,88,89,90,91,92,93,94,95,96,97,98,99,100,101,102,103,104,105,106,107,108,109,110,111,112,113,114,115,116,117,118,119,120,121,122,123,124,125,126,127,128,129,130,131,132,133,134,135,136,137,138,139,140,141,142,143,144,145,146,147,148,149,150,151,152,153,154,155,156,157,158,159,160,161,162,163,164,165,166,167,168,169,170,171,172,173,174,175,176,177,178,179,180,181,182,183,184,185,186,187,188,189,190,191,192,193,194,195,196,197,198,199,200,201,202,203,204,205,206,207,208,209,210,211,212,213,214,215,216,217,218,219,220,221,222,223,224,225,226,227,228,229,230,231,232,233,234,235,236]
[null,5678,"2.1","Aderência das metas contratuais às metas da proposta técnica","Avaliar se as metas definidas em contrato correspondem às metas estipuladas na proposta técnica da OS vencedora do processo de seleção.","Geração de Valores","Pactuação de metas aquém da proposta técnica vencedora.","Cumprir os procedimentos do processo de seleção.","UGC","Qtde de metas aderentes à PT / Qtde de metas do contrato de gestão x 100","Proposta Técnica e Contrato de Gestão","%","Antes da assinatura do contrato",1,{"$f":"IFERROR(AVERAGE(U10:IV10),\"\")","v":""},{"$f":"IFERROR(AVERAGE(U11:IV11),\"\")","v":""},"Acima da meta",{"$f":"IFERROR(IF(Q10=\"Acima da meta\",P10-O10,(P10-O10)*(-1)/O10)*N10,\"\")","v":""},null,"Meta"]
["Ó",null,null,null,null,null,null,null,null,null,null,null,null,null,null,null,null,null,null,"Realizado"]
[null,5678,"2.2","Conformidade do processo de seleção","Avaliar se o processo de seleção cumpriu os requisitos legais (prazo mínimo de 30 dias após publicação da Portaria de Publicização para publicação do edital; composição da comissão julgadora por 5 servidores do quadro permanente, sendo um deles integrante da COPEL e Publicação do Edital no DOE - 3 vezes, em Jornal de grande circulação - 2 vezes e em meios eletrônicos de comunicação. ","Geração de Valores","Processo de seleção em desconformidade legal.","Cumprir os critérios divulgados em edital.","UGC","Qtde de requisitos em conformidade / Qnte total de requisitos * 100","Diário Oficial do Estado (DOE), jornal de grande circulação e Portaria de Designação na Comissão","%","Após a publicação do edital",5,{"$f":"IFERROR(AVERAGE(U12:IV12),\"\")","v":""},{"$f":"IFERROR(AVERAGE(U13:IV13),\"\")","v":""},"Abaixo da meta",{"$f":"IFERROR(IF(Q12=\"Acima da meta\",P12-O12,(P12-O12)*(-1)/O12)*N12,\"\")","v":""},{"$f":"IF(N12=\"\",\"\",IF(R12>0,N12,-N12))","v":5},"Meta"]
["Ó",null,null,null,null,null,null,null,null,null,null,null,null,null,null,null,null,null,{"$f":"IF(N13=\"\",\"\",IF(R13>0,N13,-N13))","v":""},"Realizado"]
[null,5678,"2.3","Tempo gasto na realização do processo de seleção","Avaliar o tempo gasto desde a publicação do edital até a publicação do contrato no DOE","Geração de Valores","Ineficiência na alocação de servidores. Não prestação do serviço. ","Cumprir os critérios divulgados em edital.","UGC","Número de dias realizado do processo de seleção / Número de dias previstos * 100","Diário Oficial do Estado (DOE)","%","Após a publicação do contrato ",3,{"$f":"IFERROR(AVERAGE(U14:IV14),\"\")","v":""},{"$f":"IFERROR(AVERAGE(U15:IV15),\"\")","v":""},"Acima da meta",{"$f":"IFERROR(IF(Q14=\"Acima da meta\",P14-O14,(P14-O14)*(-1)/O14)*N14,\"\")","v":""},{"$f":"IF(N14=\"\",\"\",IF(R14>0,N14,-N14))","v":3},"Meta"]
["Ó",null,null,null,null,null,null,null,null,null,null,null,null,null,null,null,null,null,{"$f":"IF(N15=\"\",\"\",IF(R15>0,N15,-N15))","v":""},"Realizado"]
[null,null,null,null,null,null,null,null,null,null,null,null,null,null,{"$f":"IFERROR(AVERAGE(U17:IV17),\"\")","v":""},{"$f":"IFERROR(AVERAGE(U17:IV17),\"\")","v":""}]

{"sheet":"db_Seleção","index":8,"n_rows":1,"n_cols":8,"rows_kept":1,"cut":false,"hidden":true,"merged":[]}
["Contrato","Nome do indicador","Categorização","Unidade","Peso","Acompanhamento","Meta","Realizado"]

{"sheet":"pivot_Seleção","index":9,"n_rows":6,"n_cols":3,"rows_kept":6,"cut":false,"hidden":true,"merged":[]}
["Contrato","(blank)"]
["Nome do indicador","(blank)"]
[]
["Row Labels","Sum of Meta","Sum of Realizado"]
["(blank)"]
["Grand Total"]

{"sheet":"chart_seleção","index":10,"n_rows":0,"n_cols":0,"rows_kept":0,"cut":false,"hidden":false,"merged":[]}

{"sheet":"Execução","index":11,"n_rows":24,"n_cols":257,"rows_kept":24,"cut":false,"hidden":false,"merged":[[19,14,20,14],[19,15,20,15],[11,3,12,3],[17,6,18,6],[11,6,12,6],[13,6,14,6],[15,6,16,6],[13,3,14,3],[11,5,12,5],[11,10,12,10],[11,7,12,7],[15,3,16,3],[13,7,14,7],[15,4,16,4],[15,8,16,8],[15,5,16,5],[15,10,16,10],[15,7,16,7],[13,14,14,14],[13,15,14,15],[13,4,14,4],[13,8,14,8],[13,9,14,9],[13,11,14,11],[21,1,22,1],[21,2,22,2],[21,4,22,4],[21,8,22,8],[21,9,22,9],[21,10,22,10],[21,7,22,7],[21,5,22,5],[19,1,20,1],[19,2,20,2],[19,4,20,4],[19,8,20,8],[19,9,20,9],[19,6,20,6],[17,1,18,1],[17,2,18,2],[17,8,18,8],[17,9,18,9],[17,3,18,3],[15,1,16,1],[15,2,16,2],[15,16,16,16],[15,17,16,17],[15,14,16,14],[15,15,16,15],[15,9,16,9],[15,11,16,11],[15,12,16,12],[15,13,16,13],[17,16,18,16],[17,17,18,17],[17,11,18,11],[17,14,18,14],[17,15,18,15],[13,12,14,12],[13,13,14,13],[13,17,14,17],[11,13,12,13],[11,1,12,1],[11,2,12,2],[11,4,12,4],[11,8,12,8],[11,9,12,9],[11,11,12,11],[11,14,12,14],[11,15,12,15],[11,12,12,12],[11,16,12,16],[13,5,14,5],[13,10,14,10],[13,16,14,16],[11,17,12,17],[13,1,14,1],[13,2,14,2],[9,17,10,17],[9,1,10,1],[9,2,10,2],[9,8,10,8],[9,11,10,11],[9,12,10,12],[9,13,10,13],[9,14,10,14],[9,15,10,15],[9,16,10,16],[9,9,10,9],[9,4,10,4],[9,3,10,3],[9,6,10,6],[9,5,10,5],[9,10,10,10],[9,7,10,7],[19,16,20,16],[19,17,20,17],[21,14,22,14],[21,15,22,15],[21,16,22,16],[21,17,22,17],[19,3,20,3],[21,3,22,3],[17,5,18,5],[17,10,18,10],[17,7,18,7],[19,5,20,5],[19,10,20,10],[19,7,20,7],[21,6,22,6],[21,13,22,13],[17,4,18,4],[17,12,18,12],[17,13,18,13],[19,11,20,11],[19,12,20,12],[19,13,20,13],[21,11,22,11],[21,12,22,12]]}
[]
[]
[]
[]
[]
[]
[]
[null,null,null,null,null,null,null,null,null,null,null,null,null,null,null,null,null,null,null,null,"Acompanhamento do indicador"]
["XXX","Código\ndo Contrato","Código do Indicador","Nome do Indicador","Objetivo do Indicador","Norteador Relacionado","Riscos","Mecanismo de Controle","Responsável","Fórmula de Cálculo","Meio de Verificação","Unidade","Periodicidade","Peso do Indicador","Meta Geral","Realizado Geral","Este indicador deve manter-se:","Desvio",null,null,1,2,3,4,5,6,7,8,9,10,11,12,13,14,15,16,17,18,19,20,21,22,23,24,25,26,27,28,29,30,31,32,33,34,35,36,37,38,39,40,41,42,43,44,45,46,47,48,49,50,51,52,53,54,55,56,57,58,59,60,61,62,63,64,65,66,67,68,69,70,71,72,73,74,75,76,77,78,79,80,81,82,83,84,85,86,87,88,89,90,91,92,93,94,95,96,97,98,99,100,101,102,103,104,105,106,107,108,109,110,111,112,113,114,115,116,117,118,119,120,121,122,123,124,125,126,127,128,129,130,131,132,133,134,135,136,137,138,139,140,141,142,143,144,145,146,147,148,149,150,151,152,153,154,155,156,157,158,159,160,161,162,163,164,165,166,167,168,169,170,171,172,173,174,175,176,177,178,179,180,181,182,183,184,185,186,187,188,189,190,191,192,193,194,195,196,197,198,199,200,201,202,203,204,205,206,207,208,209,210,211,212,213,214,215,216,217,218,219,220,221,222,223,224,225,226,227,228,229,230,231,232,233,234,235,236]
[1,5678,"3.1","Implementação do Plano de Ação de Melhoria - OS","Avaliar se a OS implementou os Planos de Ações de Melhoria identificados durante os processos de fiscalização e/ou auditorias.","Excelência dos Processos","Não alcance das metas contratuais.","Monitorar tempestivamente o Plano de Ação de Melhoria.","UGC","Qtde de ações implementados / Total de ações planejadas * 100"," Registro de execução do Plano de Ação de Melhoria","%","Trimestral",5,{"$f":"IFERROR(AVERAGE(U10:IV10),\"\")","v":""},{"$f":"IFERROR(AVERAGE(U11:IV11),\"\")","v":""},"Abaixo da meta",{"$f":"IFERROR(IF(Q10=\"Acima da meta\",P10-O10,(P10-O10)*(-1)/O10)*N10,\"\")","v":""},{"$f":"IF(N10=\"\",\"\",IF(R10>0,N10,-N10))","v":5},"Meta"]
["Ó",null,null,null,null,null,null,null,null,null,null,null,null,null,null,null,null,null,"","Realizado",null,null,null,null,null,null,null,null,null,null,null,null,null,null,null,null,null,null,null,null,null,null,null,null,null,null,null,null,null,null,null,null,null,null,null,null,null,null,null,null,null,null,null,null,null,null,null,null,null,null,null,null,null,null,null,null,null,null,null,null,null,null,null,null,null,null,null,null,null,null,null,null,null,null,null,null,null,null,null,null,null,null,null,null,null,null,null,null,null,null,null,null,null,null,null,null,null,null,null,null,null,null,null,null,null,null,null,null,null,null,null,null,null,null,null,null,null,null,null,null,null,null,null,null,null,null,null,null,null,null,null,null,null,null,null,null,null,null,null,null,null,null,null,null,null,null,null,null,null,null,null,null,null,null,null,null,null,null,null,null,null,null,null,null,null,null,null,null,null,null,null,null,null,null,null,null,null,null,null,null,null,null,null,null,null,null,null,null,null,null,null,null,null,null,null,null,null,null,null,null,null,null,null,null,null,null,null,null,null,null,null,null,null,null,null,null,null,null,null,null,null,null,null,null,null,null,null,null,null,null,null,null,null,null,null,null,"x"]
[1,5678,"3.2","Termo de Permissão de Uso de Patrimônio Público","Avaliar se existe o Termo de Permissão de Uso do Patrimônio Público.","Excelência de Processos / Transparência de Gestão","Desvio de patrimônio público.","Cumprir as especificações previstas em contrato.","UGC","Termo de Permissão de Uso firmado / Termo de Permissão de Uso previsto * 100 ","Termo de Permissão de Uso do Patrimônio Público","%","30 dias após a assinatura do contrato.",5,{"$f":"IFERROR(AVERAGE(U12:IV12),\"\")","v":""},{"$f":"IFERROR(AVERAGE(U13:IV13),\"\")","v":""},"Abaixo da meta",{"$f":"IFERROR(IF(Q12=\"Acima da meta\",P12-O12,(P12-O12)*(-1)/O12)*N12,\"\")","v":""},5,"Meta"]
["Ó",null,null,null,null,null,null,null,null,null,null,null,null,null,null,null,null,null,"","Realizado",null,null,null,null,null,null,null,null,null,null,null,null,null,null,null,null,null,null,null,null,null,null,null,null,null,null,null,null,null,null,null,null,null,null,null,null,null,null,null,null,null,null,null,null,null,null,null,null,null,null,null,null,null,null,null,null,null,null,null,null,null,null,null,null,null,null,null,null,null,null,null,null,null,null,null,null,null,null,null,null,null,null,null,null,null,null,null,null,null,null,null,null,null,null,null,null,null,null,null,null,null,null,null,null,null,null,null,null,null,null,null,null,null,null,null,null,null,null,null,null,null,null,null,null,null,null,null,null,null,null,null,null,null,null,null,null,null,null,null,null,null,null,null,null,null,null,null,null,null,null,null,null,null,null,null,null,null,null,null,null,null,null,null,null,null,null,null,null,null,null,null,null,null,null,null,null,null,null,null,null,null,null,null,null,null,null,null,null,null,null,null,null,null,null,null,null,null,null,null,null,null,null,null,null,null,null,null,null,null,null,null,null,null,null,null,null,null,null,null,null,null,null,null,null,null,null,null,null,null,null,null,null,null,null,null,null,"x"]
[1,5678,"3.3","Registros de incorporação de patrimônio","Identificar se todos os bens públicos em poder da OS estão registrados e controlados no SIAP.","Excelência de Processos / Transparência de Gestão","Desvio de patrimônio público.","Cumprir o procedimento de registro e controle de incorporação de bem público.","UGC","Qtde dos ativos registrados no SIAP / Total de ativos inventariados","Relatório de Inventário e Relatório do SIAP","%","Trimestral",5,{"$f":"IFERROR(AVERAGE(U14:IV14),\"\")","v":""},{"$f":"IFERROR(AVERAGE(U15:IV15),\"\")","v":""},"Abaixo da meta",{"$f":"IFERROR(IF(Q14=\"Acima da meta\",P14-O14,(P14-O14)*(-1)/O14)*N14,\"\")","v":""},5,"Meta"]
["Ó",null,null,null,null,null,null,null,null,null,null,null,null,null,null,null,null,null,"","Realizado",null,null,null,null,null,null,null,null,null,null,null,null,null,null,null,null,null,null,null,null,null,null,null,null,null,null,null,null,null,null,null,null,null,null,null,null,null,null,null,null,null,null,null,null,null,null,null,null,null,null,null,null,null,null,null,null,null,null,null,null,null,null,null,null,null,null,null,null,null,null,null,null,null,null,null,null,null,null,null,null,null,null,null,null,null,null,null,null,null,null,null,null,null,null,null,null,null,null,null,null,null,null,null,null,null,null,null,null,null,null,null,null,null,null,null,null,null,null,null,null,null,null,null,null,null,null,null,null,null,null,null,null,null,null,null,null,null,null,null,null,null,null,null,null,null,null,null,null,null,null,null,null,null,null,null,null,null,null,null,null,null,null,null,null,null,null,null,null,null,null,null,null,null,null,null,null,null,null,null,null,null,null,null,null,null,null,null,null,null,null,null,null,null,null,null,null,null,null,null,null,null,null,null,null,null,null,null,null,null,null,null,null,null,null,null,null,null,null,null,null,null,null,null,null,null,null,null,null,null,null,null,null,null,null,null,null,"x"]
[1,5678,"3.4","Tempestividade no repasse financeiro à OS","Avaliar o repasse financeiro tempestivo da Secretaria responsável à OS.","Transparência de Gestão / Geração de Valores","Efetivação do repasse financeiro em desacordo com os aspectos contratuais. Não alcance das metas contratuais.","Cumprir os tipos de despesas definidas em contrato.","UGC","Qtde de repasses efetuados no prazo / Qtde de repasses previstos * 100","FIPLAN","%","Trimestral",5,{"$f":"IFERROR(AVERAGE(U16:IV16),\"\")","v":""},{"$f":"IFERROR(AVERAGE(U17:IV17),\"\")","v":""},"Abaixo da meta",{"$f":"IFERROR(IF(Q16=\"Acima da meta\",P16-O16,(P16-O16)*(-1)/O16)*N16,\"\")","v":""},5,"Meta"]
["Ó",null,null,null,null,null,null,null,null,null,null,null,null,null,null,null,null,null,"","Realizado",null,null,null,null,null,null,null,null,null,null,null,null,null,null,null,null,null,null,null,null,null,null,null,null,null,null,null,null,null,null,null,null,null,null,null,null,null,null,null,null,null,null,null,null,null,null,null,null,null,null,null,null,null,null,null,null,null,null,null,null,null,null,null,null,null,null,null,null,null,null,null,null,null,null,null,null,null,null,null,null,null,null,null,null,null,null,null,null,null,null,null,null,null,null,null,null,null,null,null,null,null,null,null,null,null,null,null,null,null,null,null,null,null,null,null,null,null,null,null,null,null,null,null,null,null,null,null,null,null,null,null,null,null,null,null,null,null,null,null,null,null,null,null,null,null,null,null,null,null,null,null,null,null,null,null,null,null,null,null,null,null,null,null,null,null,null,null,null,null,null,null,null,null,null,null,null,null,null,null,null,null,null,null,null,null,null,null,null,null,null,null,null,null,null,null,null,null,null,null,null,null,null,null,null,null,null,null,null,null,null,null,null,null,null,null,null,null,null,null,null,null,null,null,null,null,null,null,null,null,null,null,null,null,null,null,null,"x"]
[1,5678,"3.5","Cumprimento do prazo do Relatório de Prestação de Contas","Avaliar o cumprimento do prazo de envio do Relatório de Prestação de Contas pela OS.","Geração de Valores","Interrupção dos repasses financeiros.","Cumprir os prazos estipulados em contrato.","UGC","Qtde de Relatórios de Prestação de Contas enviados no prazo / Qtde de Relatórios de Prestação de Contas previstos * 100","Relatório de Prestação de Contas","%","Trimestral",5,{"$f":"IFERROR(AVERAGE(U18:IV18),\"\")","v":""},{"$f":"IFERROR(AVERAGE(U19:IV19),\"\")","v":""},"Abaixo da meta",{"$f":"IFERROR(IF(Q18=\"Acima da meta\",P18-O18,(P18-O18)*(-1)/O18)*N18,\"\")","v":""},5,"Meta"]
["Ó",null,null,null,null,null,null,null,null,null,null,null,null,null,null,null,null,null,"","Realizado",null,null,null,null,null,null,null,null,null,null,null,null,null,null,null,null,null,null,null,null,null,null,null,null,null,null,null,null,null,null,null,null,null,null,null,null,null,null,null,null,null,null,null,null,null,null,null,null,null,null,null,null,null,null,null,null,null,null,null,null,null,null,null,null,null,null,null,null,null,null,null,null,null,null,null,null,null,null,null,null,null,null,null,null,null,null,null,null,null,null,null,null,null,null,null,null,null,null,null,null,null,null,null,null,null,null,null,null,null,null,null,null,null,null,null,null,null,null,null,null,null,null,null,null,null,null,null,null,null,null,null,null,null,null,null,null,null,null,null,null,null,null,null,null,null,null,null,null,null,null,null,null,null,null,null,null,null,null,null,null,null,null,null,null,null,null,null,null,null,null,null,null,null,null,null,null,null,null,null,null,null,null,null,null,null,null,null,null,null,null,null,null,null,null,null,null,null,null,null,null,null,null,null,null,null,null,null,null,null,null,null,null,null,null,null,null,null,null,null,null,null,null,null,null,null,null,null,null,null,null,null,null,null,null,null,null,"x"]
[1,5678,"3.6","Tempestividade dos Relatórios Técnicos","Avaliar se a CMA envia tempestivamente os Relatórios Técnicos Trimestrais aos atores previstos.","Excelência de Processos / Transparência de Gestão","Interrupção dos repasses financeiros. Desconformidade legal.","Cumprir as metas definidas em contrato.","UGC","Qtde de Relatórios Técnicos entregues tempestivamente / Total de entregas previstas * 100","Registro de entrega dos Relatórios","%","Trimestral",5,{"$f":"IFERROR(AVERAGE(U20:IV20),\"\")","v":""},{"$f":"IFERROR(AVERAGE(U21:IV21),\"\")","v":""},"Abaixo da meta",{"$f":"IFERROR(IF(Q20=\"Acima da meta\",P20-O20,(P20-O20)*(-1)/O20)*N20,\"\")","v":""},5,"Meta"]
["Ó",null,null,null,null,null,null,null,null,null,null,null,null,null,null,null,null,null,"","Realizado",null,null,null,null,null,null,null,null,null,null,null,null,null,null,null,null,null,null,null,null,null,null,null,null,null,null,null,null,null,null,null,null,null,null,null,null,null,null,null,null,null,null,null,null,null,null,null,null,null,null,null,null,null,null,null,null,null,null,null,null,null,null,null,null,null,null,null,null,null,null,null,null,null,null,null,null,null,null,null,null,null,null,null,null,null,null,null,null,null,null,null,null,null,null,null,null,null,null,null,null,null,null,null,null,null,null,null,null,null,null,null,null,null,null,null,null,null,null,null,null,null,null,null,null,null,null,null,null,null,null,null,null,null,null,null,null,null,null,null,null,null,null,null,null,null,null,null,null,null,null,null,null,null,null,null,null,null,null,null,null,null,null,null,null,null,null,null,null,null,null,null,null,null,null,null,null,null,null,null,null,null,null,null,null,null,null,null,null,null,null,null,null,null,null,null,null,null,null,null,null,null,null,null,null,null,null,null,null,null,null,null,null,null,null,null,null,null,null,null,null,null,null,null,null,null,null,null,null,null,null,null,null,null,null,null,null,"x"]
[1,5678,"3.7","Implementação dos Planos de Ação de Melhoria - Secretaria contratante","Avaliar se a Secretaria implementou os Planos de Ação de Melhoria identificados durante os processos de fiscalização e/ou auditorias.","Excelência dos Processos","Não alcance das metas contratuais.","Monitorar tempestivamente o plano de ação.","UGC","Qtde de ações implementados / Total de ações planejadas * 100"," Registro de execução do Plano de Ação de Melhoria","%","Trimestral",5,{"$f":"IFERROR(AVERAGE(U22:IV22),\"\")","v":""},{"$f":"IFERROR(AVERAGE(U23:IV23),\"\")","v":""},"Abaixo da meta",{"$f":"IFERROR(IF(Q22=\"Acima da meta\",P22-O22,(P22-O22)*(-1)/O22)*N22,\"\")","v":""},5,"Meta"]
["Ó",null,null,null,null,null,null,null,null,null,null,null,null,null,null,null,null,null,"","Realizado",null,null,null,null,null,null,null,null,null,null,null,null,null,null,null,null,null,null,null,null,null,null,null,null,null,null,null,null,null,null,null,null,null,null,null,null,null,null,null,null,null,null,null,null,null,null,null,null,null,null,null,null,null,null,null,null,null,null,null,null,null,null,null,null,null,null,null,null,null,null,null,null,null,null,null,null,null,null,null,null,null,null,null,null,null,null,null,null,null,null,null,null,null,null,null,null,null,null,null,null,null,null,null,null,null,null,null,null,null,null,null,null,null,null,null,null,null,null,null,null,null,null,null,null,null,null,null,null,null,null,null,null,null,null,null,null,null,null,null,null,null,null,null,null,null,null,null,null,null,null,null,null,null,null,null,null,null,null,null,null,null,null,null,null,null,null,null,null,null,null,null,null,null,null,null,null,null,null,null,null,null,null,null,null,null,null,null,null,null,null,null,null,null,null,null,null,null,null,null,null,null,null,null,null,null,null,null,null,null,null,null,null,null,null,null,null,null,null,null,null,null,null,null,null,null,null,null,null,null,null,null,null,null,null,null,null,"x"]
["Ì"]

{"sheet":"db_Execução","index":12,"n_rows":37,"n_cols":8,"rows_kept":37,"cut":false,"hidden":true,"merged":[]}
["Contrato","Nome do indicador","Categorização","Unidade","Peso","Acompanhamento","Meta","Realizado"]
[5678,"Cumprimento do prazo de encaminhamento da prestação de contas","Gestão","Dias",5,1,1,0.99]
[5678,"Cumprimento do prazo de encaminhamento da prestação de contas","Gestão","Dias",5,2,1,0.99]
[5678,"Cumprimento do prazo de encaminhamento da prestação de contas","Gestão","Dias",5,3,1,0.99]
[5678,"Cumprimento do prazo de encaminhamento da prestação de contas","Gestão","Dias",5,4,1,0.99]
[5678,"Implementação dos Planos de Ações criados para sanar não conformidades identificadas nas fiscalizações/auditorias.","Gestão","%",5,1,1,0.85]
[5678,"Implementação dos Planos de Ações criados para sanar não conformidades identificadas nas fiscalizações/auditorias.","Gestão","%",5,2,1,0.85]
[5678,"Implementação dos Planos de Ações criados para sanar não conformidades identificadas nas fiscalizações/auditorias.","Gestão","%",5,3,1,0.85]
[5678,"Implementação dos Planos de Ações criados para sanar não conformidades identificadas nas fiscalizações/auditorias.","Gestão","%",5,4,1,0.85]
[5678,"Limite de gastos com pessoal","Gestão","%",5,1,0.65,1.1000000000000001]
[5678,"Limite de gastos com pessoal","Gestão","%",5,2,0.65,1.1000000000000001]
[5678,"Limite de gastos com pessoal","Gestão","%",5,3,0.65,1.1000000000000001]
[5678,"Limite de gastos com pessoal","Gestão","%",5,4,0.65,1.1000000000000001]
[5678,"Termo de Permissão de Uso de Patrimônio Público","Implantação","%",4,1,1,1.1000000000000001]
[5678,"Termo de Permissão de Uso de Patrimônio Público","Implantação","%",4,2,1,1.1000000000000001]
[5678,"Termo de Permissão de Uso de Patrimônio Público","Implantação","%",4,3,1,1.1000000000000001]
[5678,"Termo de Permissão de Uso de Patrimônio Público","Implantação","%",4,4,1,1.1000000000000001]
[5678,"Registros e Controles da Incorporação de Patrimônio no SIAP","Gestão","%",4,1,1,0.5]
[5678,"Registros e Controles da Incorporação de Patrimônio no SIAP","Gestão","%",4,2,1,0.5]
[5678,"Registros e Controles da Incorporação de Patrimônio no SIAP","Gestão","%",4,3,1,0.5]
[5678,"Registros e Controles da Incorporação de Patrimônio no SIAP","Gestão","%",4,4,1,0.5]
[5678,"Repasse Financeiro Após a Publicação do Contrato de Gestão no DOE.","Gestão","Dias",5,1,1,0.4]
[5678,"Repasse Financeiro Após a Publicação do Contrato de Gestão no DOE.","Gestão","Dias",5,2,1,0.4]
[5678,"Repasse Financeiro Após a Publicação do Contrato de Gestão no DOE.","Gestão","Dias",5,3,1,0.4]
[5678,"Repasse Financeiro Após a Publicação do Contrato de Gestão no DOE.","Gestão","Dias",5,4,1,0.4]
[5678,"Número de alterações contratuais no contrato","Gestão","Número",5,1,1,1]
[5678,"Número de alterações contratuais no contrato","Gestão","Número",5,2,1,1]
[5678,"Número de alterações contratuais no contrato","Gestão","Número",5,3,1,1]
[5678,"Número de alterações contratuais no contrato","Gestão","Número",5,4,1,1]
[5678,"Envio tempestivo dos relatórios técnicos trimestrais do contrato","Gestão","Dias",5,1,1,1.6]
[5678,"Envio tempestivo dos relatórios técnicos trimestrais do contrato","Gestão","Dias",5,2,1,1.6]
[5678,"Envio tempestivo dos relatórios técnicos trimestrais do contrato","Gestão","Dias",5,3,1,1.6]
[5678,"Envio tempestivo dos relatórios técnicos trimestrais do contrato","Gestão","Dias",5,4,1,1.6]
[5678,"Número de atendimentos de caso de dengue","Finalística","Número",5,1,1,2]
[5678,"Número de atendimentos de caso de dengue","Finalística","Número",5,2,1,0.5]
[5678,"Número de atendimentos de caso de dengue","Finalística","Número",5,3,1,2]
[5678,"Número de atendimentos de caso de dengue","Finalística","Número",5,4,1,0.5]

{"sheet":"pivot_Execução","index":13,"n_rows":9,"n_cols":12,"rows_kept":9,"cut":false,"hidden":true,"merged":[]}
["Contrato",5678,null,null,null,null,null,null,null,null,"Código\ndo Contrato",5678]
["Nome do indicador","Cumprimento do prazo de encaminhamento da prestação de contas"]
[]
["Row Labels","Sum of Meta","Sum of Realizado"]
[1,1,0.99]
[2,1,0.99]
[3,1,0.99]
[4,1,0.99]
["Grand Total",4,3.96]

{"sheet":"chart_Execução","index":14,"n_rows":0,"n_cols":0,"rows_kept":0,"cut":false,"hidden":false,"merged":[]}

{"sheet":"Encerramento","index":15,"n_rows":16,"n_cols":257,"rows_kept":16,"cut":false,"hidden":false,"merged":[[13,1,14,1],[13,2,14,2],[13,4,14,4],[13,11,14,11],[13,12,14,12],[13,9,14,9],[13,3,14,3],[13,5,14,5],[13,6,14,6],[11,12,12,12],[11,5,12,5],[11,10,12,10],[11,7,12,7],[11,6,12,6],[11,1,12,1],[11,2,12,2],[11,4,12,4],[11,3,12,3],[11,11,12,11],[9,1,10,1],[9,2,10,2],[9,8,10,8],[9,11,10,11],[9,12,10,12],[9,3,10,3],[9,5,10,5],[9,10,10,10],[9,7,10,7],[9,9,10,9],[9,4,10,4],[9,6,10,6],[9,13,10,13],[13,17,14,17],[13,14,14,14],[13,15,14,15],[13,13,14,13],[9,14,10,14],[9,15,10,15],[9,16,10,16],[13,16,14,16],[11,17,12,17],[11,16,12,16],[11,14,12,14],[11,15,12,15],[9,17,10,17],[11,13,12,13],[15,5,16,5],[15,10,16,10],[15,7,16,7],[11,9,12,9],[13,8,14,8],[13,7,14,7],[13,10,14,10],[11,8,12,8],[21,5,22,5],[21,10,22,10],[21,7,22,7],[17,10,18,10],[17,7,18,7],[19,5,20,5],[19,10,20,10],[19,7,20,7]]}
[]
[]
[]
[]
[]
[]
[]
[null,null,null,null,null,null,null,null,null,null,null,null,null,null,null,null,null,null,null,null,"Acompanhamento  do indicador"]
["XXX","Código\ndo Contrato","Código do Indicador","Nome do Indicador","Objetivo do Indicador","Norteador Relacionado","Riscos","Mecanismo de Controle","Responsável","Fórmula de Cálculo","Meio de Verificação","Unidade","Periodicidade","Peso do Indicador","Meta Geral","Realizado Geral","Este indicador deve manter-se:","Desvio",null,null,1,2,3,4,5,6,7,8,9,10,11,12,13,14,15,16,17,18,19,20,21,22,23,24,25,26,27,28,29,30,31,32,33,34,35,36,37,38,39,40,41,42,43,44,45,46,47,48,49,50,51,52,53,54,55,56,57,58,59,60,61,62,63,64,65,66,67,68,69,70,71,72,73,74,75,76,77,78,79,80,81,82,83,84,85,86,87,88,89,90,91,92,93,94,95,96,97,98,99,100,101,102,103,104,105,106,107,108,109,110,111,112,113,114,115,116,117,118,119,120,121,122,123,124,125,126,127,128,129,130,131,132,133,134,135,136,137,138,139,140,141,142,143,144,145,146,147,148,149,150,151,152,153,154,155,156,157,158,159,160,161,162,163,164,165,166,167,168,169,170,171,172,173,174,175,176,177,178,179,180,181,182,183,184,185,186,187,188,189,190,191,192,193,194,195,196,197,198,199,200,201,202,203,204,205,206,207,208,209,210,211,212,213,214,215,216,217,218,219,220,221,222,223,224,225,226,227,228,229,230,231,232,233,234,235,236]
[null,5678,"4.1","Reintegração do patrimônio no encerramento do contrato","Assegurar que o patrimônio público sob permissão de uso da OS seja reintegrado à Secretaria contratante.","Excelência de Processos / Transparência de Gestão","Desvio de patrimônio público.","Cumprir os inventários conforme contrato.","UGC","Qtde de bens públicos reintegrados à Secretaria contratante / Qtde de bens públicos disponibilizados à OS * 100","Relatório de Prestação de Contas Final","%","Na entrega do Relatório de Prestação de Contas Final",5,{"$f":"IFERROR(AVERAGE(U10:IV10),\"\")","v":""},{"$f":"IFERROR(AVERAGE(U11:IV11),\"\")","v":""},"Acima da meta",{"$f":"IFERROR(IF(Q10=\"Acima da meta\",P10-O10,(P10-O10)*(-1)/O10)*N10,\"\")","v":""},{"$f":"IF(N10=\"\",\"\",IF(R10>0,N10,-N10))","v":5},"Meta"]
["Ó",null,null,null,null,null,null,null,null,null,null,null,null,null,null,null,null,null,"","Realizado",null,null,null,null,null,null,null,null,null,null,null,null,null,null,null,null,null,null,null,null,null,null,null,null,null,null,null,null,null,null,null,null,null,null,null,null,null,null,null,null,null,null,null,null,null,null,null,null,null,null,null,null,null,null,null,null,null,null,null,null,null,null,null,null,null,null,null,null,null,null,null,null,null,null,null,null,null,null,null,null,null,null,null,null,null,null,null,null,null,null,null,null,null,null,null,null,null,null,null,null,null,null,null,null,null,null,null,null,null,null,null,null,null,null,null,null,null,null,null,null,null,null,null,null,null,null,null,null,null,null,null,null,null,null,null,null,null,null,null,null,null,null,null,null,null,null,null,null,null,null,null,null,null,null,null,null,null,null,null,null,null,null,null,null,null,null,null,null,null,null,null,null,null,null,null,null,null,null,null,null,null,null,null,null,null,null,null,null,null,null,null,null,null,null,null,null,null,null,null,null,null,null,null,null,null,null,null,null,null,null,null,null,null,null,null,null,null,null,null,null,null,null,null,null,null,null,null,null,null,null,null,null,null,null,null,null,"x"]
[null,1234,"4.2","Cumprimento do recolhimento das verbas trabalhistas e previdenciárias","Assegurar que as verbas trabalhistas e previdenciária foram recolhidas pela OS. ","Geração de Valores","Corresponsabilidade ocasionada por operações com a OS que não atendam as legislações trabalhista e previdenciária.","Identificar e recolher as verbas em aberto.","UGC","Total das verbas recolhidas / Total de verbas devidas * 100","Relatório de Prestação de Contas Final","%","Na entrega do Relatório de Prestação de Contas Final",5,{"$f":"IFERROR(AVERAGE(U12:IV12),\"\")","v":""},{"$f":"IFERROR(AVERAGE(U13:IV13),\"\")","v":""},"Acima da meta",{"$f":"IFERROR(IF(Q12=\"Acima da meta\",P12-O12,(P12-O12)*(-1)/O12)*N12,\"\")","v":""},5,"Meta"]
["Ó",null,null,null,null,null,null,null,null,null,null,null,null,null,null,null,null,null,"","Realizado",null,null,null,null,null,null,null,null,null,null,null,null,null,null,null,null,null,null,null,null,null,null,null,null,null,null,null,null,null,null,null,null,null,null,null,null,null,null,null,null,null,null,null,null,null,null,null,null,null,null,null,null,null,null,null,null,null,null,null,null,null,null,null,null,null,null,null,null,null,null,null,null,null,null,null,null,null,null,null,null,null,null,null,null,null,null,null,null,null,null,null,null,null,null,null,null,null,null,null,null,null,null,null,null,null,null,null,null,null,null,null,null,null,null,null,null,null,null,null,null,null,null,null,null,null,null,null,null,null,null,null,null,null,null,null,null,null,null,null,null,null,null,null,null,null,null,null,null,null,null,null,null,null,null,null,null,null,null,null,null,null,null,null,null,null,null,null,null,null,null,null,null,null,null,null,null,null,null,null,null,null,null,null,null,null,null,null,null,null,null,null,null,null,null,null,null,null,null,null,null,null,null,null,null,null,null,null,null,null,null,null,null,null,null,null,null,null,null,null,null,null,null,null,null,null,null,null,null,null,null,null,null,null,null,null,null,"x"]
[null,5678,"4.3","Reintegração de saldo de repasse financeiro","Assegurar que o saldo remanescente do contrato de gestão seja reintegrado à Secretaria contratante.","Geração de Valores","Desvio de recursos financeiros do Estado.","Identificar os saldos e repasse tempestivo dos valores.","UGC","Valor do saldo recebido / Valor do saldo a receber * 100","Relatório de Prestação de Contas Final","%","Na entrega do Relatório de Prestação de Contas Final",5,{"$f":"IFERROR(AVERAGE(U14:IV14),\"\")","v":""},{"$f":"IFERROR(AVERAGE(U15:IV15),\"\")","v":""},"Acima da meta",{"$f":"IFERROR(IF(Q14=\"Acima da meta\",P14-O14,(P14-O14)*(-1)/O14)*N14,\"\")","v":""},5,"Meta"]
["Ó",null,null,null,null,null,null,null,null,null,null,null,null,null,null,null,null,null,"","Realizado",null,null,null,null,null,null,null,null,null,null,null,null,null,null,null,null,null,null,null,null,null,null,null,null,null,null,null,null,null,null,null,null,null,null,null,null,null,null,null,null,null,null,null,null,null,null,null,null,null,null,null,null,null,null,null,null,null,null,null,null,null,null,null,null,null,null,null,null,null,null,null,null,null,null,null,null,null,null,null,null,null,null,null,null,null,null,null,null,null,null,null,null,null,null,null,null,null,null,null,null,null,null,null,null,null,null,null,null,null,null,null,null,null,null,null,null,null,null,null,null,null,null,null,null,null,null,null,null,null,null,null,null,null,null,null,null,null,null,null,null,null,null,null,null,null,null,null,null,null,null,null,null,null,null,null,null,null,null,null,null,null,null,null,null,null,null,null,null,null,null,null,null,null,null,null,null,null,null,null,null,null,null,null,null,null,null,null,null,null,null,null,null,null,null,null,null,null,null,null,null,null,null,null,null,null,null,null,null,null,null,null,null,null,null,null,null,null,null,null,null,null,null,null,null,null,null,null,null,null,null,null,null,null,null,null,null,"x"]
["Ì"]

{"sheet":"db_Encerramento","index":16,"n_rows":1,"n_cols":8,"rows_kept":1,"cut":false,"hidden":true,"merged":[]}
["Contrato","Nome do indicador","Categorização","Unidade","Peso","Acompanhamento","Meta","Realizado"]

{"sheet":"pivot_Encerramento","index":17,"n_rows":6,"n_cols":3,"rows_kept":6,"cut":false,"hidden":true,"merged":[]}
["Contrato","(All)"]
["Nome do indicador","(blank)"]
[]
["Row Labels","Sum of Meta","Sum of Realizado"]
["(blank)"]
["Grand Total"]

{"sheet":"chart_Encerramento","index":18,"n_rows":0,"n_cols":0,"rows_kept":0,"cut":false,"hidden":false,"merged":[]}

{"sheet":"listas","index":19,"n_rows":17,"n_cols":12,"rows_kept":17,"cut":false,"hidden":true,"merged":[]}
[]
[]
[null,null,null,null,null,null,null,null,null,null,"Lista Índice de Desempenho de Gestão da OS"]
[null,null,"Pesos dos indicadores",null,null,null,"Acima da meta",null,null,null,"Aspectos Operacionais","IAO"]
[null,null,1,null,null,null,"Abaixo da meta",null,null,null,"Gestão Orçamentária e Financeira","IGOF"]
[null,null,2,null,null,null,null,null,null,null,"Gestão de Aquisição","IGA"]
[null,null,3,null,null,null,null,null,null,null,"Gestão de Pessoal","IGP"]
[null,null,4,null,null,null,null,null,null,null,"Gestão Patrimonial","IGPL"]
[null,null,5,null,null,null,null,null,null,null,"Gestão de Controle","IGC"]
[]
[]
[]
[]
[null,null,"Categorização"]
[null,null,"Implantação"]
[null,null,"Finalística"]
[null,null,"Gestão"]